[Event "*** SCC Grand Prix: Titled Tuesday Blitz"]
[Site "Chess.com"]
[Date "2020.07.14"]
[Round "9"]
[White "francyIM"]
[Black "Lector118"]
[Result "1-0"]
[WhiteElo "2656"]
[BlackElo "2504"]
[TimeControl "180+1"]
[EndTime "11:47:02 PDT"]
[Termination "francyIM won by resignation"]

1. e4 {[%clk 0:03:00.9]} 1... c6 {[%clk 0:02:58.5]} 2. Nf3 {[%clk 0:03:00.5]}
2... g6 {[%clk 0:02:58.3]} 3. d3 {[%clk 0:03:01.4]} 3... d5 {[%clk 0:02:58]} 4.
Nbd2 {[%clk 0:03:00.4]} 4... Bg7 {[%clk 0:02:58]} 5. g3 {[%clk 0:03:00.8]} 5...
e5 {[%clk 0:02:58.3]} 6. Bg2 {[%clk 0:03:01]} 6... Ne7 {[%clk 0:02:59]} 7. O-O
{[%clk 0:03:01.2]} 7... O-O {[%clk 0:02:59.6]} 8. Re1 {[%clk 0:03:01.3]} 8...
Qc7 {[%clk 0:02:44.8]} 9. b3 {[%clk 0:03:00.3]} 9... h6 {[%clk 0:02:39.9]} 10.
Bb2 {[%clk 0:02:59.3]} 10... d4 {[%clk 0:02:39.1]} 11. c3 {[%clk 0:02:56.8]}
11... c5 {[%clk 0:02:34.2]} 12. Rc1 {[%clk 0:02:55.1]} 12... Nbc6 {[%clk
0:02:31.5]} 13. cxd4 {[%clk 0:02:54.9]} 13... cxd4 {[%clk 0:02:29.2]} 14. b4
{[%clk 0:02:54.8]} 14... Qb6 {[%clk 0:02:22.4]} 15. a3 {[%clk 0:02:53.4]} 15...
a5 {[%clk 0:02:21.6]} 16. Nc4 {[%clk 0:02:46.6]} 16... Qa6 {[%clk 0:02:06.7]}
17. Qb3 {[%clk 0:02:41.8]} 17... a4 {[%clk 0:01:40.7]} 18. Qc2 {[%clk 0:02:40]}
18... b5 {[%clk 0:01:39.4]} 19. Ncd2 {[%clk 0:02:35.6]} 19... Be6 {[%clk
0:01:38]} 20. Qd1 {[%clk 0:02:33]} 20... Rac8 {[%clk 0:01:35.3]} 21. h3 {[%clk
0:02:31.8]} 21... Nb8 {[%clk 0:01:30.4]} 22. Qe2 {[%clk 0:02:20.7]} 22... Qd6
{[%clk 0:01:30.1]} 23. Nh2 {[%clk 0:02:19.6]} 23... g5 {[%clk 0:01:22.8]} 24.
Qf1 {[%clk 0:02:18.2]} 24... Ng6 {[%clk 0:01:22.8]} 25. Bf3 {[%clk 0:02:16.4]}
25... Nd7 {[%clk 0:01:15.2]} 26. Bg4 {[%clk 0:02:15.2]} 26... Nf6 {[%clk
0:01:14.9]} 27. Bf5 {[%clk 0:02:14.6]} 27... Bxf5 {[%clk 0:01:08.1]} 28. exf5
{[%clk 0:02:15.5]} 28... Ne7 {[%clk 0:01:08.7]} 29. Ne4 {[%clk 0:02:13.2]} 29...
Nxe4 {[%clk 0:01:08.3]} 30. dxe4 {[%clk 0:02:14.1]} 30... Qb6 {[%clk 0:01:03.6]}
31. Qd3 {[%clk 0:02:10.8]} 31... f6 {[%clk 0:01:02.4]} 32. Nf3 {[%clk
0:02:04.8]} 32... Rxc1 {[%clk 0:01:01.5]} 33. Rxc1 {[%clk 0:02:03.8]} 33... Rc8
{[%clk 0:01:02.1]} 34. Rxc8+ {[%clk 0:02:03.1]} 34... Nxc8 {[%clk 0:01:02.2]}
35. Qc2 {[%clk 0:02:04]} 35... Nd6 {[%clk 0:01:02.5]} 36. Ne1 {[%clk 0:02:03.5]}
36... Nc4 {[%clk 0:01:02.3]} 37. Nd3 {[%clk 0:02:03.4]} 37... Bf8 {[%clk
0:01:00.3]} 38. Bc1 {[%clk 0:02:02.7]} 38... Qb7 {[%clk 0:00:59.1]} 39. Qe2
{[%clk 0:02:02.5]} 39... Qf7 {[%clk 0:00:55.9]} 40. h4 {[%clk 0:01:52.9]} 40...
Nd6 {[%clk 0:00:53.2]} 41. hxg5 {[%clk 0:01:50.6]} 41... hxg5 {[%clk 0:00:52.7]}
42. f3 {[%clk 0:01:48.1]} 42... Qc4 {[%clk 0:00:51]} 43. g4 {[%clk 0:01:47.2]}
43... Qc3 {[%clk 0:00:48.8]} 44. Qd2 {[%clk 0:01:46.4]} 44... Qxd2 {[%clk
0:00:36.2]} 45. Bxd2 {[%clk 0:01:46]} 45... Nc4 {[%clk 0:00:37.1]} 46. Bc1
{[%clk 0:01:46.4]} 46... Kf7 {[%clk 0:00:37.4]} 47. Kf2 {[%clk 0:01:46.7]} 47...
Bd6 {[%clk 0:00:36.9]} 48. Ke2 {[%clk 0:01:47.6]} 48... Ke7 {[%clk 0:00:37.5]}
49. Nf2 {[%clk 0:01:47.7]} 49... Kd7 {[%clk 0:00:36.9]} 50. Kd3 {[%clk 0:01:48]}
50... Kc6 {[%clk 0:00:37]} 51. Nh1 {[%clk 0:01:47.6]} 51... Bxb4 {[%clk
0:00:29.2]} 52. axb4 {[%clk 0:01:46.8]} 52... a3 {[%clk 0:00:30.1]} 53. Kc2
{[%clk 0:01:42.2]} 53... a2 {[%clk 0:00:28.9]} 54. Bb2 {[%clk 0:01:42]} 54...
Ne3+ {[%clk 0:00:26.1]} 55. Kb3 {[%clk 0:01:41.2]} 55... d3 {[%clk 0:00:24.8]}
56. Nf2 {[%clk 0:01:40.8]} 56... Nc2 {[%clk 0:00:17.5]} 57. Nxd3 {[%clk
0:01:34.8]} 57... Ne3 {[%clk 0:00:16.5]} 58. Kxa2 {[%clk 0:01:33.4]} 58... Nc4
{[%clk 0:00:17.1]} 59. Kb3 {[%clk 0:01:32.8]} 59... Kd6 {[%clk 0:00:17.2]} 60.
Bc1 {[%clk 0:01:31.2]} 60... Kc6 {[%clk 0:00:16.9]} 61. Nb2 {[%clk 0:01:30.7]}
61... Nb6 {[%clk 0:00:16.4]} 62. Nd1 {[%clk 0:01:30.7]} 62... Kd6 {[%clk
0:00:16.5]} 63. Nc3 {[%clk 0:01:29.5]} 63... Nc8 {[%clk 0:00:13.2]} 64. Nxb5+
{[%clk 0:01:29.1]} 1-0

[Event "*** SCC Grand Prix: Titled Tuesday Blitz"]
[Site "Chess.com"]
[Date "2020.07.14"]
[Round "9"]
[White "Orest_Vovk"]
[Black "maciek_92"]
[Result "0-1"]
[WhiteElo "2433"]
[BlackElo "2616"]
[TimeControl "180+1"]
[EndTime "11:47:03 PDT"]
[Termination "maciek_92 won by checkmate"]

1. h4 {[%clk 0:03:00.9]} 1... d5 {[%clk 0:02:55.3]} 2. h5 {[%clk 0:03:00.9]}
2... Nc6 {[%clk 0:02:55.3]} 3. e4 {[%clk 0:03:00.2]} 3... dxe4 {[%clk
0:02:55.2]} 4. Nc3 {[%clk 0:03:00.4]} 4... Nf6 {[%clk 0:02:55.2]} 5. Rh4 {[%clk
0:02:59]} 5... Nd4 {[%clk 0:02:40.7]} 6. Nxe4 {[%clk 0:02:53.3]} 6... Nxe4
{[%clk 0:02:40.9]} 7. Rxe4 {[%clk 0:02:53.2]} 7... Bf5 {[%clk 0:02:41.6]} 8. d3
{[%clk 0:02:46]} 8... Bxe4 {[%clk 0:02:39]} 9. dxe4 {[%clk 0:02:46.9]} 9... e5
{[%clk 0:02:36.8]} 10. c3 {[%clk 0:02:43.4]} 10... Ne6 {[%clk 0:02:36.5]} 11.
Qb3 {[%clk 0:02:41.5]} 11... Nc5 {[%clk 0:02:36.3]} 12. Qc4 {[%clk 0:02:37.7]}
12... c6 {[%clk 0:02:19.2]} 13. a4 {[%clk 0:02:32.7]} 13... a5 {[%clk
0:02:10.2]} 14. Be3 {[%clk 0:02:28.2]} 14... Ne6 {[%clk 0:02:02.1]} 15. Nf3
{[%clk 0:02:20.6]} 15... Qc7 {[%clk 0:01:59.6]} 16. O-O-O {[%clk 0:02:20]} 16...
Be7 {[%clk 0:01:55.6]} 17. h6 {[%clk 0:02:14.6]} 17... g6 {[%clk 0:01:55.4]} 18.
g3 {[%clk 0:01:55.4]} 18... Rd8 {[%clk 0:01:46.5]} 19. Rxd8+ {[%clk 0:01:50.8]}
19... Nxd8 {[%clk 0:01:47.4]} 20. Qb3 {[%clk 0:01:33.4]} 20... Ne6 {[%clk
0:01:30.5]} 21. Bc4 {[%clk 0:01:21]} 21... Qd6 {[%clk 0:01:11.6]} 22. Qxb7
{[%clk 0:01:14.3]} 22... O-O {[%clk 0:01:11.2]} 23. Nxe5 {[%clk 0:00:57.6]}
23... Nd8 {[%clk 0:00:58.9]} 24. Nxf7 {[%clk 0:00:21]} 24... Nxf7 {[%clk
0:00:53.7]} 25. f4 {[%clk 0:00:14]} 25... Rd8 {[%clk 0:00:48.4]} 26. Kb1 {[%clk
0:00:12.3]} 26... Qd7 {[%clk 0:00:30.2]} 27. Qb6 {[%clk 0:00:07.3]} 27... Qd1+
{[%clk 0:00:28]} 28. Bc1 {[%clk 0:00:07.4]} 28... Qxa4 {[%clk 0:00:27.1]} 29.
Ba2 {[%clk 0:00:03.6]} 29... Qxe4+ {[%clk 0:00:25.7]} 30. Ka1 {[%clk 0:00:03.3]}
30... Kf8 {[%clk 0:00:20.6]} 31. Qb3 {[%clk 0:00:02.4]} 31... Qd5 {[%clk
0:00:19.5]} 32. Qc2 {[%clk 0:00:02.3]} 32... Qd1 {[%clk 0:00:19.6]} 33. Qe4
{[%clk 0:00:01.2]} 33... Qxc1+ {[%clk 0:00:19.7]} 34. Bb1 {[%clk 0:00:02.1]}
34... Rb8 {[%clk 0:00:18.5]} 35. Qe6 {[%clk 0:00:03]} 35... Qxb2# {[%clk
0:00:18.5]} 0-1

[Event "*** SCC Grand Prix: Titled Tuesday Blitz"]
[Site "Chess.com"]
[Date "2020.07.14"]
[Round "9"]
[White "Batsai"]
[Black "politeplayer"]
[Result "1-0"]
[WhiteElo "2377"]
[BlackElo "2208"]
[TimeControl "180+1"]
[EndTime "11:47:05 PDT"]
[Termination "Batsai won by resignation"]

1. d4 {[%clk 0:03:00.9]} 1... Nf6 {[%clk 0:02:57.1]} 2. c4 {[%clk 0:03:00.1]}
2... c5 {[%clk 0:02:56.4]} 3. d5 {[%clk 0:02:59.7]} 3... e6 {[%clk 0:02:56.6]}
4. Nc3 {[%clk 0:02:56.1]} 4... exd5 {[%clk 0:02:56.5]} 5. cxd5 {[%clk 0:02:57]}
5... d6 {[%clk 0:02:56.6]} 6. e4 {[%clk 0:02:53.7]} 6... g6 {[%clk 0:02:56.7]}
7. f4 {[%clk 0:02:54]} 7... Bg7 {[%clk 0:02:52.4]} 8. Bb5+ {[%clk 0:02:53.9]}
8... Nfd7 {[%clk 0:02:51.6]} 9. Nf3 {[%clk 0:02:52.6]} 9... a6 {[%clk
0:02:49.5]} 10. Bd3 {[%clk 0:02:50.3]} 10... b5 {[%clk 0:02:49.3]} 11. O-O
{[%clk 0:02:49.9]} 11... c4 {[%clk 0:02:45]} 12. Bc2 {[%clk 0:02:49.3]} 12...
Qb6+ {[%clk 0:02:39.1]} 13. Kh1 {[%clk 0:02:48]} 13... O-O {[%clk 0:02:37.4]}
14. f5 {[%clk 0:02:39.6]} 14... Ne5 {[%clk 0:02:33]} 15. Bg5 {[%clk 0:02:19.7]}
15... Nbd7 {[%clk 0:02:16.2]} 16. Nd4 {[%clk 0:01:58.1]} 16... Nc5 {[%clk
0:02:08.8]} 17. f6 {[%clk 0:01:45.3]} 17... Bh8 {[%clk 0:02:06.9]} 18. Nce2
{[%clk 0:01:44.1]} 18... Bg4 {[%clk 0:02:04.2]} 19. h3 {[%clk 0:01:39.4]} 19...
Bxe2 {[%clk 0:01:50.9]} 20. Qxe2 {[%clk 0:01:40.3]} 20... Ncd3 {[%clk 0:01:45]}
21. Ne6 {[%clk 0:01:07.9]} 21... Rfe8 {[%clk 0:01:26.9]} 22. Be3 {[%clk
0:01:03.1]} 22... Qb7 {[%clk 0:01:18.3]} 23. Ng5 {[%clk 0:00:58.9]} 23... Nxb2
{[%clk 0:01:12.8]} 24. Qf2 {[%clk 0:00:46.9]} 24... h6 {[%clk 0:01:04.3]} 25.
Nf3 {[%clk 0:00:45.3]} 25... Bxf6 {[%clk 0:00:57.4]} 26. Bxh6 {[%clk 0:00:37.4]}
26... Nbd3 {[%clk 0:00:50.7]} 27. Qg3 {[%clk 0:00:33.2]} 27... Nxf3 {[%clk
0:00:45.3]} 28. gxf3 {[%clk 0:00:28.9]} 28... Bxa1 {[%clk 0:00:39.3]} 29. Rxa1
{[%clk 0:00:27]} 29... Qe7 {[%clk 0:00:38.7]} 30. Rg1 {[%clk 0:00:20.2]} 30...
Rac8 {[%clk 0:00:29.7]} 31. Bg5 {[%clk 0:00:18.1]} 31... Qe5 {[%clk 0:00:28.4]}
32. Qh4 {[%clk 0:00:17.1]} 32... Rc7 {[%clk 0:00:08.9]} 33. Bf6 {[%clk
0:00:16.4]} 33... Qh5 {[%clk 0:00:08.3]} 34. Qxh5 {[%clk 0:00:16.3]} 1-0

[Event "*** SCC Grand Prix: Titled Tuesday Blitz"]
[Site "Chess.com"]
[Date "2020.07.14"]
[Round "9"]
[White "Michaelson_11"]
[Black "UKR_Master"]
[Result "0-1"]
[WhiteElo "2124"]
[BlackElo "2329"]
[TimeControl "180+1"]
[EndTime "11:47:05 PDT"]
[Termination "UKR_Master won by checkmate"]

1. e4 {[%clk 0:03:00.9]} 1... c6 {[%clk 0:03:00.1]} 2. d4 {[%clk 0:03:00.6]}
2... g6 {[%clk 0:03:00.2]} 3. Nd2 {[%clk 0:03:01.5]} 3... Bg7 {[%clk 0:03:00.2]}
4. c3 {[%clk 0:03:00.8]} 4... d5 {[%clk 0:03:00.4]} 5. Bd3 {[%clk 0:03:01.7]}
5... dxe4 {[%clk 0:02:59.5]} 6. Nxe4 {[%clk 0:03:02.6]} 6... Nd7 {[%clk
0:02:59.5]} 7. Nf3 {[%clk 0:03:01.8]} 7... Ngf6 {[%clk 0:02:59.9]} 8. O-O {[%clk
0:03:01.6]} 8... Nxe4 {[%clk 0:03:00.1]} 9. Bxe4 {[%clk 0:03:02.5]} 9... Nf6
{[%clk 0:03:01]} 10. Bc2 {[%clk 0:03:02.2]} 10... O-O {[%clk 0:03:01.9]} 11. h3
{[%clk 0:02:57.9]} 11... b6 {[%clk 0:02:55]} 12. Bg5 {[%clk 0:02:56.4]} 12...
Bb7 {[%clk 0:02:54.8]} 13. Re1 {[%clk 0:02:52.4]} 13... Rc8 {[%clk 0:02:54.5]}
14. c4 {[%clk 0:02:31.6]} 14... h6 {[%clk 0:02:51.4]} 15. Bh4 {[%clk 0:02:28.3]}
15... Qd6 {[%clk 0:02:45.8]} 16. Bg3 {[%clk 0:02:25.6]} 16... Qb4 {[%clk
0:02:44.5]} 17. b3 {[%clk 0:02:17.7]} 17... Nh5 {[%clk 0:02:36]} 18. a3 {[%clk
0:02:15.7]} 18... Qa5 {[%clk 0:02:25.6]} 19. Rxe7 {[%clk 0:01:59.7]} 19... Nxg3
{[%clk 0:02:22.9]} 20. fxg3 {[%clk 0:02:00.6]} 20... Ba8 {[%clk 0:02:10.7]} 21.
Qd3 {[%clk 0:01:49.8]} 21... c5 {[%clk 0:02:03.9]} 22. Rae1 {[%clk 0:01:39.3]}
22... cxd4 {[%clk 0:02:02.7]} 23. b4 {[%clk 0:01:34.4]} 23... Qa6 {[%clk
0:01:52.3]} 24. b5 {[%clk 0:01:25.1]} 24... Qa5 {[%clk 0:01:51.4]} 25. Qd2
{[%clk 0:00:51.9]} 25... Qxd2 {[%clk 0:01:26.4]} 26. Nxd2 {[%clk 0:00:52.8]}
26... d3 {[%clk 0:01:27.3]} 27. Bb3 {[%clk 0:00:29.8]} 27... Bd4+ {[%clk
0:01:22.1]} 28. Kh2 {[%clk 0:00:27.1]} 28... Bc5 {[%clk 0:01:18.5]} 29. Rxa7
{[%clk 0:00:24.5]} 29... Rce8 {[%clk 0:01:10.8]} 30. Rxe8 {[%clk 0:00:20.5]}
30... Rxe8 {[%clk 0:01:11.7]} 31. Bd1 {[%clk 0:00:16.4]} 31... Kg7 {[%clk
0:01:07.9]} 32. Nb3 {[%clk 0:00:16.4]} 32... Bf2 {[%clk 0:00:48.6]} 33. h4
{[%clk 0:00:09]} 33... h5 {[%clk 0:00:39.8]} 34. Rd7 {[%clk 0:00:08.6]} 34...
Re3 {[%clk 0:00:38]} 35. a4 {[%clk 0:00:05.6]} 35... Bxg3+ {[%clk 0:00:37.9]}
36. Kh3 {[%clk 0:00:04.1]} 36... Be5+ {[%clk 0:00:29.6]} 37. Bf3 {[%clk
0:00:04.3]} 37... Re1 {[%clk 0:00:29.9]} 38. g3 {[%clk 0:00:03.3]} 38... Bxf3
{[%clk 0:00:28.8]} 39. Nd2 {[%clk 0:00:02.1]} 39... Rh1# {[%clk 0:00:28.6]} 0-1

[Event "*** SCC Grand Prix: Titled Tuesday Blitz"]
[Site "Chess.com"]
[Date "2020.07.14"]
[Round "9"]
[White "Batica1984"]
[Black "WIDBIFS"]
[Result "1-0"]
[WhiteElo "2879"]
[BlackElo "2743"]
[TimeControl "180+1"]
[EndTime "11:47:06 PDT"]
[Termination "Batica1984 won on time"]

1. e4 {[%clk 0:03:00.9]} 1... g6 {[%clk 0:03:00.1]} 2. d4 {[%clk 0:02:58.6]}
2... Bg7 {[%clk 0:03:00.5]} 3. Nc3 {[%clk 0:02:58.2]} 3... c6 {[%clk 0:02:59.9]}
4. h3 {[%clk 0:02:54.4]} 4... d6 {[%clk 0:02:59.5]} 5. f4 {[%clk 0:02:52.4]}
5... Nf6 {[%clk 0:02:59.7]} 6. Nf3 {[%clk 0:02:51.9]} 6... O-O {[%clk
0:03:00.2]} 7. Be3 {[%clk 0:02:45.6]} 7... Nbd7 {[%clk 0:02:48.9]} 8. e5 {[%clk
0:02:40.9]} 8... Nd5 {[%clk 0:02:47.5]} 9. Nxd5 {[%clk 0:02:40.2]} 9... cxd5
{[%clk 0:02:48.4]} 10. Qd2 {[%clk 0:02:32.5]} 10... f5 {[%clk 0:02:37.4]} 11. h4
{[%clk 0:02:20.5]} 11... h5 {[%clk 0:02:23.2]} 12. Rh3 {[%clk 0:02:16.4]} 12...
Bh6 {[%clk 0:01:58]} 13. Rg3 {[%clk 0:02:13.9]} 13... Kh7 {[%clk 0:01:58.1]} 14.
Ng5+ {[%clk 0:02:09.8]} 14... Bxg5 {[%clk 0:01:58.1]} 15. Rxg5 {[%clk 0:02:09]}
15... Nb6 {[%clk 0:01:38.9]} 16. b3 {[%clk 0:02:08.1]} 16... Be6 {[%clk
0:01:38.8]} 17. Bd3 {[%clk 0:02:07.3]} 17... Qe8 {[%clk 0:01:14.7]} 18. g4
{[%clk 0:01:58.4]} 18... hxg4 {[%clk 0:00:18.2]} 19. h5 {[%clk 0:01:58]} 19...
gxh5 {[%clk 0:00:19.1]} 20. Qh2 {[%clk 0:01:57.9]} 20... Kh6 {[%clk 0:00:19.7]}
21. O-O-O {[%clk 0:01:57.3]} 21... Rg8 {[%clk 0:00:20.1]} 22. Bxf5 {[%clk
0:01:38.3]} 22... Bxf5 {[%clk 0:00:14.7]} 23. Rxf5 {[%clk 0:01:38.5]} 23... Qg6
{[%clk 0:00:09.2]} 24. Rf6 {[%clk 0:01:25.9]} 24... exf6 {[%clk 0:00:06.5]} 25.
f5+ {[%clk 0:01:25.7]} 25... Qg5 {[%clk 0:00:07.1]} 26. Bxg5+ {[%clk 0:01:25.9]}
26... Rxg5 {[%clk 0:00:07.5]} 27. e6 {[%clk 0:01:21.3]} 27... Rxf5 {[%clk
0:00:07.3]} 28. Qxd6 {[%clk 0:01:21.2]} 28... Kg6 {[%clk 0:00:06.7]} 29. Re1
{[%clk 0:01:18.6]} 29... Re8 {[%clk 0:00:04.7]} 30. e7 {[%clk 0:01:18.3]} 30...
Nc8 {[%clk 0:00:04.5]} 31. Qd7 {[%clk 0:01:13.4]} 31... Rxe7 {[%clk 0:00:04.7]}
32. Rxe7 {[%clk 0:01:12.6]} 32... Nxe7 {[%clk 0:00:05.6]} 33. Qxe7 {[%clk
0:01:12.9]} 33... Kg5 {[%clk 0:00:06.1]} 34. Qxb7 {[%clk 0:01:07.6]} 34... Kf4
{[%clk 0:00:06.1]} 35. Qc7+ {[%clk 0:01:05.9]} 35... Kf3 {[%clk 0:00:06.2]} 36.
Qd7 {[%clk 0:01:06.1]} 36... Kf4 {[%clk 0:00:05]} 37. c4 {[%clk 0:01:04.6]}
37... dxc4 {[%clk 0:00:04.2]} 38. d5 {[%clk 0:01:04.9]} 38... cxb3 {[%clk
0:00:03.2]} 39. d6 {[%clk 0:01:03.5]} 39... bxa2 {[%clk 0:00:03.6]} 40. Kb2
{[%clk 0:01:03]} 40... g3 {[%clk 0:00:04.5]} 41. Qc7 {[%clk 0:00:55]} 41... g2
{[%clk 0:00:02]} 42. d7+ {[%clk 0:00:55.2]} 42... Kg4 {[%clk 0:00:01.8]} 43.
Qc4+ {[%clk 0:00:50.7]} 43... Rf4 {[%clk 0:00:01.8]} 44. Qg8+ {[%clk 0:00:47.4]}
44... Kf3 {[%clk 0:00:01.9]} 45. d8=Q {[%clk 0:00:47.4]} 1-0

[Event "*** SCC Grand Prix: Titled Tuesday Blitz"]
[Site "Chess.com"]
[Date "2020.07.14"]
[Round "9"]
[White "BillieKimbah"]
[Black "Mfcyryd"]
[Result "0-1"]
[WhiteElo "2888"]
[BlackElo "2616"]
[TimeControl "180+1"]
[EndTime "11:47:08 PDT"]
[Termination "Mfcyryd won on time"]

1. d4 {[%clk 0:03:00.9]} 1... Nf6 {[%clk 0:02:59.1]} 2. Nf3 {[%clk 0:03:00.7]}
2... e6 {[%clk 0:02:58.3]} 3. Bg5 {[%clk 0:02:59.9]} 3... b6 {[%clk 0:02:58.3]}
4. e4 {[%clk 0:02:50]} 4... Bb7 {[%clk 0:02:57.7]} 5. Bd3 {[%clk 0:02:47.9]}
5... h6 {[%clk 0:02:51.9]} 6. Bxf6 {[%clk 0:02:46.3]} 6... gxf6 {[%clk
0:02:52.8]} 7. O-O {[%clk 0:02:39.3]} 7... h5 {[%clk 0:02:48.2]} 8. c4 {[%clk
0:02:36.2]} 8... h4 {[%clk 0:02:44]} 9. h3 {[%clk 0:02:35.9]} 9... Nc6 {[%clk
0:02:40.4]} 10. Nc3 {[%clk 0:02:35.1]} 10... Bd6 {[%clk 0:02:39.5]} 11. Re1
{[%clk 0:02:32.2]} 11... Bf4 {[%clk 0:02:39.3]} 12. a3 {[%clk 0:02:23.3]} 12...
Ne7 {[%clk 0:02:35.7]} 13. Ne2 {[%clk 0:02:18.6]} 13... Ng6 {[%clk 0:02:34.8]}
14. d5 {[%clk 0:02:13.8]} 14... Qe7 {[%clk 0:02:28.9]} 15. b4 {[%clk 0:02:09.2]}
15... a5 {[%clk 0:02:22.1]} 16. Rb1 {[%clk 0:02:06]} 16... Be5 {[%clk 0:02:18]}
17. Qd2 {[%clk 0:01:51.3]} 17... axb4 {[%clk 0:02:17.1]} 18. axb4 {[%clk
0:01:51.1]} 18... Kf8 {[%clk 0:02:17.4]} 19. Rf1 {[%clk 0:01:46.8]} 19... Kg7
{[%clk 0:02:14.8]} 20. Ne1 {[%clk 0:01:34.2]} 20... c6 {[%clk 0:02:10.9]} 21.
Nf3 {[%clk 0:01:27.2]} 21... cxd5 {[%clk 0:02:02.8]} 22. cxd5 {[%clk 0:01:25.8]}
22... Qd6 {[%clk 0:01:59.9]} 23. Rfd1 {[%clk 0:01:21.3]} 23... Ra4 {[%clk
0:01:56.9]} 24. Bb5 {[%clk 0:01:20.7]} 24... Ra3 {[%clk 0:01:53.1]} 25. Nxe5
{[%clk 0:01:19.7]} 25... Qxe5 {[%clk 0:01:48.3]} 26. f3 {[%clk 0:00:43.2]} 26...
exd5 {[%clk 0:01:30.8]} 27. exd5 {[%clk 0:00:44.1]} 27... Rc8 {[%clk 0:01:24]}
28. Bxd7 {[%clk 0:00:40.6]} 28... Rd8 {[%clk 0:01:21.6]} 29. f4 {[%clk
0:00:30.4]} 29... Qe4 {[%clk 0:01:18.6]} 30. Nc3 {[%clk 0:00:10.6]} 30... Rxc3
{[%clk 0:01:15.8]} 31. Qxc3 {[%clk 0:00:11.5]} 31... Bxd5 {[%clk 0:01:07.6]} 32.
Rxd5 {[%clk 0:00:08.3]} 32... Qxd5 {[%clk 0:01:07.7]} 33. Bg4 {[%clk 0:00:08.2]}
33... Nxf4 {[%clk 0:01:02.3]} 34. Bf3 {[%clk 0:00:08.5]} 34... Qg5 {[%clk
0:00:56.5]} 35. Kh1 {[%clk 0:00:07.8]} 35... Qg3 {[%clk 0:00:55.6]} 36. Rf1
{[%clk 0:00:07.4]} 36... Nxg2 {[%clk 0:00:48.2]} 37. Qb2 {[%clk 0:00:01.8]}
37... Qxh3+ {[%clk 0:00:46.4]} 38. Kg1 {[%clk 0:00:02.2]} 38... Ne3 {[%clk
0:00:46.5]} 0-1

[Event "*** SCC Grand Prix: Titled Tuesday Blitz"]
[Site "Chess.com"]
[Date "2020.07.14"]
[Round "9"]
[White "Mbneu"]
[Black "ferdipy"]
[Result "1-0"]
[WhiteElo "2237"]
[BlackElo "2332"]
[TimeControl "180+1"]
[EndTime "11:47:09 PDT"]
[Termination "Mbneu won by resignation"]

1. d4 {[%clk 0:03:00.9]} 1... e5 {[%clk 0:02:59]} 2. Nf3 {[%clk 0:02:54]} 2...
d6 {[%clk 0:02:59.9]} 3. dxe5 {[%clk 0:02:51.9]} 3... Nc6 {[%clk 0:02:58.8]} 4.
e4 {[%clk 0:02:47.1]} 4... Bg4 {[%clk 0:02:57.7]} 5. Be2 {[%clk 0:02:46.3]} 5...
dxe5 {[%clk 0:02:56.8]} 6. Qxd8+ {[%clk 0:02:45.2]} 6... Rxd8 {[%clk 0:02:56.3]}
7. c3 {[%clk 0:02:44.1]} 7... a5 {[%clk 0:02:54.6]} 8. Be3 {[%clk 0:02:38.5]}
8... Nf6 {[%clk 0:02:53.6]} 9. Nbd2 {[%clk 0:02:36.7]} 9... Be7 {[%clk 0:02:52]}
10. h3 {[%clk 0:02:31.5]} 10... Bh5 {[%clk 0:02:49.6]} 11. Nh2 {[%clk
0:02:00.8]} 11... Bxe2 {[%clk 0:02:37.9]} 12. Kxe2 {[%clk 0:02:00.5]} 12... O-O
{[%clk 0:02:38.5]} 13. Rhd1 {[%clk 0:01:54.7]} 13... Rd7 {[%clk 0:02:31.8]} 14.
f3 {[%clk 0:01:47.2]} 14... Rfd8 {[%clk 0:02:28.4]} 15. Ndf1 {[%clk 0:01:39.5]}
15... h5 {[%clk 0:01:53.7]} 16. Rxd7 {[%clk 0:01:38.3]} 16... Rxd7 {[%clk
0:01:52.6]} 17. Rd1 {[%clk 0:01:38.8]} 17... Rxd1 {[%clk 0:01:46.4]} 18. Kxd1
{[%clk 0:01:38.3]} 18... Kf8 {[%clk 0:01:47.3]} 19. Bg5 {[%clk 0:01:33.8]} 19...
Ke8 {[%clk 0:01:46.7]} 20. Ne3 {[%clk 0:01:31.7]} 20... g6 {[%clk 0:01:43.2]}
21. Nhf1 {[%clk 0:01:26.6]} 21... Kd7 {[%clk 0:01:39]} 22. Nd2 {[%clk
0:01:25.3]} 22... a4 {[%clk 0:01:31.8]} 23. Kc2 {[%clk 0:01:18.1]} 23... Ke6
{[%clk 0:01:32]} 24. Bxf6 {[%clk 0:01:12.4]} 24... Bxf6 {[%clk 0:01:30.9]} 25.
Nd5 {[%clk 0:01:12]} 25... Bd8 {[%clk 0:01:29.8]} 26. b4 {[%clk 0:01:08.9]}
26... axb3+ {[%clk 0:01:26.3]} 27. axb3 {[%clk 0:01:07.8]} 27... Nb8 {[%clk
0:01:24.6]} 28. Nc4 {[%clk 0:01:05.2]} 28... Nd7 {[%clk 0:01:23.7]} 29. b4
{[%clk 0:00:58.8]} 29... b5 {[%clk 0:01:19.5]} 30. Na5 {[%clk 0:00:56.7]} 30...
Kd6 {[%clk 0:01:00.2]} 31. Nb7+ {[%clk 0:00:55.2]} 31... Ke6 {[%clk 0:00:56.2]}
32. Nxd8+ {[%clk 0:00:54.8]} 32... Kd6 {[%clk 0:00:57.1]} 33. Nxf7+ {[%clk
0:00:54.5]} 33... Ke6 {[%clk 0:00:56.9]} 34. Ng5+ {[%clk 0:00:46.3]} 34... Kd6
{[%clk 0:00:57.3]} 35. h4 {[%clk 0:00:45.1]} 35... c6 {[%clk 0:00:57.4]} 36. Ne3
{[%clk 0:00:44.8]} 36... Nf6 {[%clk 0:00:56]} 37. g3 {[%clk 0:00:43.1]} 37...
Nd7 {[%clk 0:00:56.3]} 38. f4 {[%clk 0:00:42.7]} 38... exf4 {[%clk 0:00:57.2]}
39. gxf4 {[%clk 0:00:42.7]} 39... Nb6 {[%clk 0:00:57.2]} 40. Kd3 {[%clk
0:00:41]} 40... Na4 {[%clk 0:00:55.6]} 41. e5+ {[%clk 0:00:34.8]} 41... Ke7
{[%clk 0:00:55.5]} 42. Kd4 {[%clk 0:00:33.4]} 42... Kd7 {[%clk 0:00:53.7]} 43.
f5 {[%clk 0:00:33]} 43... gxf5 {[%clk 0:00:52.9]} 44. Nxf5 {[%clk 0:00:33.6]}
44... Nb6 {[%clk 0:00:52.1]} 45. e6+ {[%clk 0:00:33.6]} 45... Ke8 {[%clk
0:00:52.3]} 46. Ng7+ {[%clk 0:00:33.2]} 46... Ke7 {[%clk 0:00:50.2]} 47. Nxh5
{[%clk 0:00:33.7]} 47... Nd5 {[%clk 0:00:50.7]} 48. Ng3 {[%clk 0:00:31.2]} 48...
Nf4 {[%clk 0:00:49.8]} 49. Nf5+ {[%clk 0:00:30.7]} 49... Ke8 {[%clk 0:00:48.7]}
50. Ke5 {[%clk 0:00:27.8]} 50... Nd3+ {[%clk 0:00:46.1]} 51. Kf6 {[%clk
0:00:27.7]} 51... Kd8 {[%clk 0:00:43.6]} 52. e7+ {[%clk 0:00:27.2]} 52... Kd7
{[%clk 0:00:43.5]} 53. Ng7 {[%clk 0:00:26.6]} 1-0